bitfinex/quotes_BTCUSD_20250518
["timestamp","ask_amount","ask_price","bid_price","bid_amount"]
[1747582866086,1.23009418,105350.0,105340.0,7.48928268]
[1747582867359,1.23009418,105350.0,105340.0,7.42458268]
[1747582868166,1.23009418,105350.0,105340.0,7.48948268]
[1747582869748,1.23009418,105350.0,105340.0,7.42458268]
[1747582873708,0.66623296,105350.0,105340.0,7.42458268]
[1747582873928,1.22977418,105350.0,105340.0,7.42458268]
[1747582877043,1.03627296,105350.0,105340.0,7.42458268]
[1747582877266,1.22977418,105350.0,105340.0,7.42458268]
[1747582879819,0.85973418,105350.0,105340.0,7.48858268]
[1747582880026,1.22977418,105350.0,105340.0,7.48858268]
[1747582880228,0.85973418,105350.0,105340.0,7.48858268]
[1747582880434,1.22977418,105350.0,105340.0,7.48858268]
[1747582882499,1.22977418,105350.0,105340.0,7.45638268]
[1747582882711,1.22977418,105350.0,105340.0,7.48858268]
[1747582884248,1.22977418,105350.0,105340.0,7.42458268]
[1747582891679,1.03627296,105350.0,105340.0,7.42458268]
[1747582891910,1.22977418,105350.0,105340.0,7.42458268]
[1747582892307,1.03627296,105350.0,105340.0,7.42458268]
[1747582892504,1.22977418,105350.0,105340.0,7.42458268]
[1747582895349,1.03627296,105350.0,105340.0,7.42458268]
[1747582895555,1.22977418,105350.0,105340.0,7.42458268]
[1747582897533,0.69023333,105350.0,105340.0,7.48918268]
[1747582897798,0.32118346,105350.0,105340.0,7.50816872]
[1747582898012,0.21438199,105350.0,105340.0,7.70752291]
[1747582898229,0.23336532,105350.0,105340.0,7.69803012]
[1747582898644,0.23336514,105350.0,105340.0,7.70712601]
[1747582899007,0.24285694,105350.0,105340.0,7.70712601]
[1747582899217,0.23336514,105350.0,105340.0,7.69763304]
[1747582899416,0.24285694,105350.0,105340.0,7.69763304]
[1747582899781,0.23336514,105350.0,105340.0,7.71661889]
[1747582900627,0.23336514,105350.0,105340.0,7.70712601]
[1747582900841,0.24285694,105350.0,105340.0,7.49827857]
[1747582901057,0.25234955,105350.0,105340.0,7.49827857]
[1747582902316,0.25234946,105350.0,105340.0,7.48918268]
[1747582905087,0.24285739,105350.0,105340.0,7.48918268]
[1747582905292,0.25234946,105350.0,105340.0,7.48918268]
[1747582906363,0.18984337,105350.0,105340.0,7.42458268]
[1747582906573,0.20882706,105350.0,105340.0,7.42458268]
[1747582906791,0.21831868,105350.0,105340.0,7.42458268]
[1747582906995,0.21831868,105350.0,105340.0,7.48778268]
[1747582907380,0.21831832,105350.0,105340.0,7.48778268]
[1747582907615,0.21831832,105350.0,105340.0,7.49727575]
[1747582907818,0.21831832,105350.0,105340.0,7.50676872]
[1747582908020,0.21831832,105350.0,105340.0,7.49727575]
[1747582908463,0.21831832,105350.0,105340.0,7.50676872]
[1747582909023,0.21831832,105350.0,105340.0,7.5162616]
[1747582909438,0.19934966,105360.0,105350.0,0.00949216]
[1747582909645,0.32513212,105360.0,105350.0,0.0659]
[1747582910674,0.32613212,105360.0,105350.0,0.0659]
[1747582910872,0.3166414,105360.0,105350.0,0.0659]
[1747582913907,0.32617443,105360.0,105350.0,0.0659]
[1747582914304,0.31668317,105360.0,105350.0,0.0659]
[1747582921570,0.30719182,105360.0,105350.0,0.0659]
[1747582921776,0.33566452,105360.0,105350.0,0.0659]
[1747582922374,0.33566434,105360.0,105350.0,0.0659]
[1747582922797,0.01049045,105360.0,105350.0,0.28611708]
[1747582923024,0.20980644,105360.0,105350.0,0.28421895]
[1747582923232,0.20980644,105360.0,105350.0,0.27472724]
[1747582923869,0.001,105360.0,105350.0,0.28421895]
[1747582924092,0.20031599,105360.0,105350.0,0.28421895]
[1747582925211,0.20980671,105360.0,105350.0,0.27472724]
[1747582926297,0.20980671,105360.0,105350.0,0.27472733]
[1747582926503,0.20980671,105360.0,105350.0,0.28421913]
[1747582927147,0.20031599,105360.0,105350.0,0.28421913]
[1747582927353,0.20031599,105360.0,105350.0,0.30320246]
[1747582927354,0.19082536,105360.0,105350.0,0.30320246]
[1747582927554,0.20031599,105360.0,105350.0,0.28421877]
[1747582927769,0.20031599,105360.0,105350.0,0.29330428]
[1747582928226,0.20031599,105360.0,105350.0,0.28381257]
[1747582928416,0.19931599,105360.0,105350.0,0.28381257]
[1747582928863,0.19931599,105360.0,105350.0,0.29330428]
[1747582929076,0.1993159,105360.0,105350.0,0.29330428]
[1747582929287,0.20880653,105360.0,105350.0,0.28381257]
[1747582930117,0.20880653,105360.0,105350.0,0.29330428]
[1747582930912,0.20880653,105360.0,105350.0,0.28381257]
[1747582931127,0.21829743,105360.0,105350.0,0.28381302]
[1747582931488,0.21829734,105360.0,105350.0,0.28381302]
[1747582931699,0.22778824,105360.0,105350.0,0.28381302]
[1747582932149,0.22778869,105360.0,105350.0,0.00908551]
[1747582932333,0.23727986,105360.0,105350.0,0.00908551]
[1747582932547,0.22778869,105360.0,105350.0,0.01857767]
[1747582932699,0.22778869,105360.0,105350.0,0.08437767]
[1747582933173,0.69311927,105360.0,105350.0,0.00908551]
[1747582933388,1.29664012,105360.0,105350.0,0.00908551]
[1747582934233,0.2751762,105350.0,105340.0,7.44454268]
[1747582934439,0.75058682,105350.0,105340.0,7.44454268]
[1747582937945,1.09058682,105350.0,105340.0,7.44454268]
[1747582942166,0.8970856,105350.0,105340.0,7.44454268]
[1747582942360,1.09058682,105350.0,105340.0,7.44454268]
[1747582943569,1.09258682,105350.0,105340.0,7.44454268]
[1747582944807,1.09358682,105350.0,105340.0,7.44454268]
[1747582945757,0.70094475,105350.0,105340.0,7.44454268]
[1747582946013,1.00888475,105350.0,105340.0,7.44454268]
[1747582946179,1.01770597,105350.0,105340.0,7.44454268]
[1747582947095,1.20242597,105350.0,105340.0,7.44454268]
[1747582951390,1.19994597,105350.0,105340.0,7.44454268]
[1747582953170,1.20945865,105350.0,105340.0,7.44454268]
[1747582953364,1.20945865,105350.0,105340.0,7.50162222]
[1747582953577,1.20945865,105350.0,105340.0,7.24502287]
[1747582962125,0.84017865,105350.0,105340.0,7.24502287]
[1747582962324,1.20921865,105350.0,105340.0,7.24502287]
[1747582964945,1.20917865,105350.0,105340.0,7.24502287]
[1747582965148,1.20917865,105350.0,105340.0,7.30842287]
[1747582965477,0.70920224,105350.0,105340.0,7.30842287]
[1747582965878,0.69971035,105350.0,105340.0,7.30842287]
[1747582968300,0.69269837,105350.0,105340.0,7.30842287]
[1747582969337,0.32369837,105350.0,105340.0,7.30842287]
[1747582969775,0.50817837,105350.0,105340.0,7.30842287]
[1747582970827,0.4986863,105350.0,105340.0,7.30842287]
[1747582971249,0.69218752,105350.0,105340.0,7.30842287]
[1747582972532,0.3142063,105350.0,105340.0,7.30842287]
[1747582979074,0.6142063,105350.0,105340.0,7.30842287]
[1747582982127,0.61864932,105350.0,105340.0,7.30842287]
[1747582982328,0.62814103,105350.0,105340.0,7.30842287]
[1747582982793,0.63763247,105350.0,105340.0,7.30842287]
[1747582983631,0.64712445,105350.0,105340.0,7.30842287]
[1747582984075,0.63763229,105350.0,105340.0,7.30842287]
[1747582984276,0.64712445,105350.0,105340.0,7.30842287]
[1747582984456,0.63761177,105350.0,105340.0,7.30842287]
[1747582985060,0.31249135,105350.0,105340.0,7.53625508]
[1747582985262,0.51182625,105350.0,105340.0,7.51727013]
[1747582985424,0.51182625,105350.0,105340.0,7.52676283]
[1747582985793,0.51182625,105350.0,105340.0,7.53625544]
[1747582986008,0.50982625,105350.0,105340.0,7.52676283]
[1747582986200,0.50882625,105350.0,105340.0,7.53625535]
[1747582986429,0.50882625,105350.0,105340.0,7.53625544]
[1747582986848,0.3,105350.0,105340.0,7.73924909]
[1747582987498,0.3,105350.0,105340.0,7.54574787]
[1747582987821,0.3,105350.0,105340.0,7.55482496]
[1747582989079,0.3,105350.0,105340.0,7.56428974]
[1747582991059,0.3,105350.0,105340.0,7.56628974]
[1747582992349,0.3,105350.0,105340.0,7.85710036]
[1747582996509,0.3,105350.0,105340.0,7.66359914]
[1747582996731,0.3,105350.0,105340.0,7.85710036]
[1747582999259,0.3,105350.0,105340.0,8.04138036]
[1747583000083,0.3,105350.0,105340.0,7.85710036]
[1747583000365,0.3,105350.0,105340.0,8.04138036]
[1747583000573,0.3,105350.0,105340.0,8.0984599]
[1747583000795,0.3,105350.0,105340.0,8.04138036]
[1747583003607,0.3,105350.0,105340.0,7.85710036]
[1747583003755,0.3,105350.0,105340.0,8.22566036]
[1747583004973,0.3,105350.0,105340.0,8.03215914]
[1747583005179,0.3,105350.0,105340.0,8.22566036]
[1747583005395,0.3,105350.0,105340.0,8.03195558]
[1747583005613,0.3,105350.0,105340.0,8.21619558]
[1747583006351,0.3,105350.0,105340.0,7.84763558]
[1747583006582,0.3,105350.0,105340.0,8.03195558]
[1747583006829,0.3,105350.0,105340.0,8.04163524]
[1747583011408,0.3,105350.0,105340.0,8.23513646]
[1747583011640,0.3,105350.0,105340.0,8.04163524]
[1747583012913,0.3,105350.0,105340.0,8.22583524]
[1747583013789,0.3,105350.0,105340.0,8.21615558]
[1747583016818,0.3,105350.0,105340.0,8.4096568]
[1747583018972,0.3,105350.0,105340.0,8.7496568]
[1747583019804,0.3,105350.0,105340.0,8.76101869]
[1747583020243,0.3,105350.0,105340.0,9.17511869]
[1747583025471,0.3,105350.0,105340.0,8.95451991]
[1747583025691,0.3,105350.0,105340.0,8.98299091]
[1747583025927,0.3,105350.0,105340.0,8.78948969]
[1747583026592,0.3,105350.0,105340.0,8.79329052]
[1747583028252,0.3,105350.0,105340.0,8.98679174]
[1747583028455,0.3,105350.0,105340.0,9.98032374]
[1747583028667,0.3,105350.0,105340.0,9.64690474]
[1747583028870,0.3,105350.0,105340.0,9.64590474]
[1747583029084,0.3,105350.0,105340.0,10.06200474]
[1747583029485,0.3,105350.0,105340.0,10.03584574]
[1747583029883,0.3,105350.0,105340.0,9.44267452]
[1747583030287,0.3,105350.0,105340.0,9.44567452]
[1747583030960,0.3,105350.0,105340.0,9.45567452]
[1747583031297,0.3,105350.0,105340.0,9.47021537]
[1747583031574,0.3,105350.0,105340.0,9.66371659]
[1747583032218,0.3,105350.0,105340.0,10.07351659]
[1747583032417,0.3,105350.0,105340.0,10.07151659]
[1747583032640,0.3,105350.0,105340.0,10.12847659]
[1747583032844,0.3,105350.0,105340.0,10.13347659]
[1747583033055,4e-05,105380.0,105360.0,0.01]
[1747583033278,4e-05,105380.0,105370.0,1.84954333]
[1747583033279,8.718e-05,105380.0,105370.0,1.84954333]
[1747583033488,8.718e-05,105380.0,105370.0,1.85764618]
[1747583033686,8.718e-05,105380.0,105370.0,1.91800557]
[1747583034234,8.718e-05,105380.0,105370.0,1.97496557]
[1747583034636,8.718e-05,105380.0,105370.0,1.98604266]
[1747583035042,8.718e-05,105380.0,105370.0,1.98404266]
[1747583035256,8.718e-05,105380.0,105370.0,1.95601912]
[1747583035774,8.718e-05,105380.0,105370.0,1.96101912]
[1747583035977,8.718e-05,105380.0,105370.0,1.59285912]
[1747583036231,8.718e-05,105380.0,105370.0,1.97221514]
[1747583036863,8.718e-05,105380.0,105370.0,1.60413514]
[1747583037065,8.718e-05,105380.0,105370.0,2.07207514]
[1747583037272,8.718e-05,105380.0,105370.0,1.97221514]
[1747583037691,8.718e-05,105380.0,105370.0,1.91525514]
[1747583038122,3.974e-05,105390.0,105380.0,0.21825663]
[1747583038326,3.974e-05,105390.0,105380.0,1.17658847]
[1747583038972,3.974e-05,105390.0,105380.0,1.19086757]
[1747583039358,3.974e-05,105390.0,105380.0,1.19994466]
[1747583039588,3.974e-05,105390.0,105380.0,1.20394466]
[1747583039798,3.974e-05,105390.0,105380.0,1.01044344]
[1747583039999,3.974e-05,105390.0,105380.0,1.01344344]
[1747583042972,3.974e-05,105390.0,105380.0,0.81994222]
[1747583043804,3.974e-05,105390.0,105380.0,0.84840122]
[1747583044211,3.974e-05,105390.0,105380.0,1.26250122]
[1747583046001,3.974e-05,105390.0,105380.0,1.42480122]
[1747583047037,3.974e-05,105390.0,105380.0,1.52466122]
[1747583047239,3.974e-05,105390.0,105380.0,1.42480122]
[1747583048124,3.974e-05,105390.0,105380.0,1.43607724]
[1747583048756,3.974e-05,105390.0,105380.0,1.38651809]
[1747583051389,3.974e-05,105390.0,105380.0,1.75423809]
[1747583052988,3.974e-05,105400.0,105390.0,0.59277677]
[1747583053187,3.974e-05,105400.0,105390.0,1.78672217]
[1747583054207,3.974e-05,105400.0,105390.0,1.81096198]
[1747583055626,3.974e-05,105400.0,105390.0,1.81996198]
[1747583058365,3.974e-05,105400.0,105390.0,1.80479926]
[1747583058572,3.974e-05,105400.0,105390.0,1.8808702]
[1747583058774,0.00203974,105410.0,105400.0,0.21821522]
[1747583058975,0.00203974,105410.0,105400.0,3.21777247]
[1747583059168,0.00203974,105410.0,105400.0,2.75796747]
[1747583059346,0.00203974,105410.0,105400.0,2.72457947]
[1747583059571,0.00203974,105410.0,105400.0,3.78470747]
[1747583059824,0.00203974,105410.0,105400.0,3.79378456]
[1747583060258,0.00203974,105410.0,105400.0,3.45603356]
[1747583060474,0.00203974,105410.0,105400.0,3.15615756]
[1747583060677,0.00203974,105410.0,105400.0,2.87018156]
[1747583060884,0.00203974,105410.0,105400.0,3.05942156]
[1747583061092,0.00203974,105410.0,105400.0,3.06162156]
[1747583061776,0.00203974,105410.0,105400.0,3.05962156]
[1747583062018,0.00203974,105410.0,105400.0,3.01040356]
[1747583062252,0.00203974,105410.0,105400.0,3.01940356]
[1747583062486,0.00203974,105410.0,105400.0,3.01540356]
[1747583062714,4e-05,105420.0,105410.0,0.21819451]
[1747583062905,0.00051178,105420.0,105410.0,1.14109391]
[1747583063127,0.00051178,105420.0,105410.0,1.04070091]
[1747583063336,0.00051178,105420.0,105410.0,1.06915291]
[1747583063547,0.00051178,105420.0,105410.0,1.07876411]
[1747583063956,0.00051178,105420.0,105410.0,0.57387811]
[1747583064165,0.00051178,105420.0,105410.0,0.5829552]
[1747583064365,0.00051178,105420.0,105410.0,0.5849552]
[1747583065121,0.00051178,105420.0,105410.0,0.5619642]
[1747583065331,0.00051178,105420.0,105410.0,0.9760642]
[1747583065544,0.00051178,105420.0,105410.0,0.8156442]
[1747583065961,0.01155178,105440.0,105430.0,0.21815312]
[1747583066168,0.01155178,105440.0,105430.0,0.51054252]
[1747583066169,0.01169326,105440.0,105430.0,0.51054252]
[1747583066378,0.04399326,105440.0,105430.0,0.51054252]
[1747583067465,0.04499326,105440.0,105430.0,0.51054252]
[1747583067674,0.04499326,105440.0,105430.0,0.51961961]
[1747583068548,0.04499326,105440.0,105430.0,0.52061961]
[1747583068981,0.04490584,105440.0,105430.0,0.52061961]
[1747583069822,0.04490584,105440.0,105430.0,0.32553961]
[1747583071178,0.33913481,105440.0,105430.0,0.32553961]
[1747583071384,0.0322,105430.0,105420.0,0.28613512]
[1747583071589,0.0322,105430.0,105420.0,0.57316184]
[1747583071796,0.0322,105430.0,105420.0,0.59213221]
[1747583072005,0.0629,105430.0,105420.0,0.69171709]
[1747583072421,0.0322,105430.0,105420.0,0.69171709]
[1747583072628,0.0322,105430.0,105420.0,0.69371709]
[1747583073481,0.0322,105430.0,105420.0,0.69471709]
[1747583073696,0.0322,105430.0,105420.0,0.30899709]
[1747583073905,0.0322,105430.0,105420.0,0.69487709]
[1747583074960,0.0645,105430.0,105420.0,0.69487709]
[1747583075176,0.26708839,105430.0,105420.0,0.21168769]
[1747583075609,0.25760424,105430.0,105420.0,0.21168769]
[1747583076734,0.26708857,105430.0,105420.0,0.21168769]
[1747583076945,0.27657308,105430.0,105420.0,0.21168769]
[1747583077164,0.27657299,105430.0,105420.0,0.21168769]
[1747583077664,0.26708848,105430.0,105420.0,0.21168769]
[1747583077868,0.38732172,105430.0,105420.0,0.21168769]
[1747583078040,0.36835252,105430.0,105420.0,0.21168769]
[1747583078701,0.37783694,105430.0,105420.0,0.21168769]
[1747583079055,0.37783694,105430.0,105420.0,0.23065923]
[1747583079410,0.08346866,105430.0,105420.0,0.23065923]
[1747583079613,0.38732154,105430.0,105420.0,0.23065923]
[1747583079822,0.37783694,105430.0,105420.0,0.23065923]
[1747583080144,0.38732163,105430.0,105420.0,0.23065923]
[1747583080282,0.37783694,105430.0,105420.0,0.23065923]
[1747583081836,0.38732154,105430.0,105420.0,0.23065923]
[1747583082085,0.08346866,105430.0,105420.0,0.23065923]
[1747583082253,0.37783694,105430.0,105420.0,0.23065923]
[1747583082933,0.0645,105430.0,105420.0,0.23065923]
[1747583084111,0.0645,105430.0,105420.0,0.23969905]
[1747583085386,0.06206,105430.0,105420.0,0.23969905]
[1747583086254,0.02976,105430.0,105420.0,0.23969905]
[1747583086876,0.06276,105430.0,105420.0,0.23969905]
[1747583092319,0.0311,105420.0,105400.0,0.61100066]
[1747583092522,0.0311,105420.0,105410.0,0.21060473]
[1747583092732,0.0311,105420.0,105410.0,0.20870784]
[1747583094183,0.0311,105420.0,105410.0,0.21170784]
[1747583094926,0.0311,105420.0,105410.0,0.21470784]
[1747583096713,0.0631,105420.0,105410.0,0.21470784]
[1747583099570,0.35746828,105420.0,105410.0,0.21470784]
[1747583099712,0.0631,105420.0,105410.0,0.21470784]
[1747583100569,0.26578436,105420.0,105410.0,0.21470784]
[1747583100775,0.66767181,105420.0,105410.0,0.006]
[1747583101046,0.76498184,105420.0,105410.0,0.22419487]
[1747583101272,0.76498184,105420.0,105410.0,0.23368109]
[1747583101503,0.3785834,105420.0,105410.0,0.22419487]
[1747583101715,0.77439891,105420.0,105410.0,0.21470856]
[1747583101913,0.78388477,105420.0,105410.0,0.22419496]
[1747583102154,0.28139397,105410.0,105400.0,0.19920759]
[1747583102321,0.28485779,105410.0,105400.0,0.21818192]
[1747583102521,0.27537139,105410.0,105400.0,0.21818192]
[1747583103080,0.47459319,105410.0,105400.0,0.20869489]
[1747583103287,0.27537139,105410.0,105400.0,0.21818192]
[1747583103490,0.27537139,105410.0,105400.0,0.22118192]
[1747583103902,0.07268595,105410.0,105400.0,0.22118192]
[1747583104102,0.0632,105410.0,105400.0,0.22118192]
[1747583104538,0.07268604,105410.0,105400.0,0.22118192]
[1747583104773,0.27537148,105410.0,105400.0,0.22118192]
[1747583104998,0.26588526,105410.0,105400.0,0.23024258]
[1747583105209,0.07268604,105410.0,105400.0,0.23024258]
[1747583105420,0.08217217,105410.0,105400.0,0.23024258]
[1747583105635,0.07268604,105410.0,105400.0,0.23024258]
[1747583108653,0.03,105400.0,105380.0,0.4369192]
[1747583108811,0.03,105400.0,105390.0,0.00189734]
[1747583109011,0.03,105400.0,105390.0,0.19163531]
[1747583109232,0.03,105400.0,105390.0,0.21061126]
[1747583109385,0.03,105400.0,105390.0,0.20871392]
[1747583109811,0.03,105400.0,105390.0,0.2091857]
[1747583110027,0.03,105400.0,105390.0,0.2121857]
[1747583111085,0.37,105400.0,105390.0,0.2121857]
[1747583111408,0.37,105400.0,105390.0,0.2141857]
[1747583113448,0.03,105400.0,105390.0,0.2141857]
[1747583115854,0.062,105400.0,105390.0,0.2141857]
[1747583116939,0.27417319,105400.0,105390.0,0.20469813]
[1747583117138,0.4734139,105400.0,105390.0,0.20469813]
[1747583117352,0.4734139,105400.0,105390.0,0.19520975]
[1747583117552,0.4734139,105400.0,105390.0,0.01496025]
[1747583117553,0.76392333,105400.0,105390.0,0.01496025]
[1747583117751,0.57072411,105400.0,105390.0,0.22370824]
[1747583117905,0.57072411,105400.0,105390.0,0.21870815]
[1747583118109,0.76392333,105400.0,105390.0,0.00996025]
[1747583118319,0.08287658,105390.0,105380.0,0.0379564]
[1747583118521,0.28556328,105390.0,105380.0,0.22771229]
[1747583118743,0.27607508,105390.0,105380.0,0.22771229]
[1747583119148,0.28556328,105390.0,105380.0,0.22771229]
[1747583119619,0.09236406,105390.0,105380.0,0.22771229]
[1747583119815,0.09236406,105390.0,105380.0,0.22871229]
[1747583120233,0.09236406,105390.0,105380.0,0.21922346]
[1747583120401,0.09236406,105390.0,105380.0,0.22871229]
[1747583121143,0.48482298,105390.0,105380.0,0.001]
[1747583121442,0.56315652,105390.0,105380.0,0.001]
[1747583122135,0.25370734,105370.0,105360.0,0.19923306]
[1747583122368,0.07338955,105370.0,105360.0,0.21826177]
[1747583122571,0.07338955,105370.0,105360.0,4.718e-05]
[1747583122572,0.35101674,105370.0,105360.0,4.718e-05]
[1747583122775,0.57268596,105370.0,105360.0,0.19936371]
[1747583122987,0.57268596,105370.0,105360.0,0.00910065]
[1747583123770,0.67419275,105370.0,105360.0,0.00910065]
[1747583124201,0.67419275,105370.0,105360.0,4.718e-05]
[1747583124611,0.67419275,105370.0,105360.0,0.00204718]
[1747583124835,0.37948665,105370.0,105360.0,0.01153835]
[1747583125033,0.37948665,105370.0,105360.0,0.00304718]
[1747583125240,0.38897701,105370.0,105360.0,0.00304718]
[1747583125440,0.38897692,105370.0,105360.0,4.718e-05]
[1747583125792,0.38897692,105370.0,105360.0,0.00104718]
[1747583126003,0.37948719,105370.0,105360.0,0.00095922]
[1747583127536,0.6741932,105370.0,105360.0,0.00095922]
[1747583128164,0.6741932,105370.0,105360.0,0.00087153]
[1747583128916,0.37948719,105370.0,105360.0,0.00087153]
[1747583129124,0.36999692,105370.0,105360.0,0.0103627]
[1747583129319,0.38897692,105370.0,105360.0,0.01036279]
[1747583129567,0.37948665,105370.0,105360.0,0.20018797]
[1747583129790,0.36999647,105370.0,105360.0,0.20018797]
[1747583129994,0.37948665,105370.0,105360.0,0.19069689]
[1747583130196,0.38897701,105370.0,105360.0,0.01036279]
[1747583130438,0.37948665,105370.0,105360.0,0.01985396]
[1747583130617,0.38897701,105370.0,105360.0,0.01985396]
[1747583131165,0.37948665,105370.0,105360.0,0.20967932]
[1747583131386,0.38897692,105370.0,105360.0,0.2191704]
[1747583131609,0.38897692,105370.0,105360.0,0.20967932]
[1747583131784,0.38897692,105370.0,105360.0,0.01036279]
[1747583132587,0.38897692,105370.0,105360.0,0.01985396]
[1747583132753,0.38897692,105370.0,105360.0,0.2191704]
[1747583132954,0.38897692,105370.0,105360.0,0.22866139]
[1747583133212,0.37948665,105370.0,105360.0,0.23815184]
[1747583133414,0.38897701,105370.0,105360.0,0.21917013]
[1747583134970,0.37948665,105370.0,105360.0,0.22866103]
[1747583135185,0.37948656,105370.0,105360.0,0.22866103]
[1747583135829,0.0332,105370.0,105360.0,0.22866103]
[1747583136052,0.63104492,105380.0,105370.0,0.20878743]
[1747583136463,0.64053429,105380.0,105370.0,0.20878752]
[1747583136686,0.63104564,105380.0,105370.0,0.21827761]
[1747583137126,0.63104564,105380.0,105370.0,0.20878761]
[1747583137325,0.63204564,105380.0,105370.0,0.20878761]
[1747583137744,0.64165882,105380.0,105370.0,0.20878761]
[1747583137950,0.65114828,105380.0,105370.0,0.20878761]
[1747583138376,0.64165882,105380.0,105370.0,0.20878761]
[1747583138583,0.65114828,105380.0,105370.0,0.20878761]
[1747583138802,0.65114828,105380.0,105370.0,0.21827725]
[1747583138803,0.01061318,105380.0,105370.0,0.21827725]
[1747583139017,0.01048874,105380.0,105370.0,0.24837725]
[1747583139224,0.01997766,105380.0,105370.0,0.24837725]
[1747583139661,0.001,105380.0,105370.0,0.28157725]
[1747583140935,0.001,105380.0,105370.0,0.29059603]
[1747583141366,0.001,105380.0,105370.0,0.77170543]
[1747583141816,0.001,105380.0,105370.0,0.78101347]
[1747583143027,0.01897424,105400.0,105390.0,0.21823592]
[1747583144066,0.00948703,105400.0,105390.0,0.21823592]
[1747583144477,0.01148703,105400.0,105390.0,0.21823592]
[1747583144724,0.01348703,105400.0,105390.0,0.21823592]
[1747583144937,0.01348694,105400.0,105390.0,0.21823592]
[1747583145140,0.02297397,105400.0,105390.0,0.21823592]
[1747583145939,0.02057397,105400.0,105390.0,0.21823592]
[1747583146161,0.03954839,105400.0,105390.0,0.21823592]
[1747583146396,0.03006109,105400.0,105390.0,0.21823592]
[1747583146985,0.03954839,105400.0,105390.0,0.21823592]
[1747583147632,0.07124839,105400.0,105390.0,0.21823592]
[1747583148839,0.06176109,105400.0,105390.0,0.21823592]
[1747583149055,0.07124839,105400.0,105390.0,0.21823592]
[1747583150930,0.26100171,105400.0,105390.0,0.21823592]
[1747583151986,0.03954839,105400.0,105390.0,0.21823592]
[1747583153437,0.04903587,105400.0,105390.0,0.21823592]
[1747583153651,0.08063587,105400.0,105390.0,0.21823592]
[1747583153888,0.02057397,105400.0,105390.0,0.21823592]
[1747583154535,0.0016,105400.0,105390.0,0.21823592]
[1747583154754,0.0016,105400.0,105390.0,0.28193592]
[1747583154977,0.0016,105400.0,105390.0,0.27244772]
[1747583155227,0.0016,105400.0,105390.0,0.28193592]
[1747583156157,0.01108694,105400.0,105390.0,0.24993592]
[1747583156366,0.0016,105400.0,105390.0,0.24993592]
[1747583156567,0.01108694,105400.0,105390.0,0.24993592]
[1747583156773,0.0016,105400.0,105390.0,0.24993592]
[1747583156980,0.01108694,105400.0,105390.0,0.24993592]
[1747583158271,0.0016,105400.0,105390.0,0.28193592]
[1747583158691,0.01108685,105400.0,105390.0,0.28193592]
[1747583158906,0.0016,105400.0,105390.0,0.28193592]
[1747583159803,0.01108685,105400.0,105390.0,0.28193592]
[1747583160013,0.01108685,105400.0,105390.0,0.24993592]
[1747583160222,30.00931235,105380.0,105370.0,1.10557139]
[1747583160444,30.00931235,105380.0,105370.0,1.12455112]
[1747583160650,30.00931235,105380.0,105370.0,0.93367112]
[1747583160853,30.00931235,105380.0,105370.0,1.13321074]
[1747583161299,30.00931235,105380.0,105370.0,0.71911074]
[1747583161734,30.00931235,105380.0,105370.0,0.72011074]
[1747583162296,30.00931235,105380.0,105370.0,0.71779074]
[1747583162574,30.00931235,105380.0,105370.0,0.71979074]
[1747583163222,30.00931235,105380.0,105370.0,0.78349074]
[1747583163653,30.00931235,105380.0,105370.0,0.77220413]
[1747583163843,30.50931235,105380.0,105370.0,0.77220413]
[1747583164276,30.50931235,105380.0,105370.0,1.11220413]
[1747583168725,30.50931235,105380.0,105370.0,0.73112413]
[1747583168945,30.50931235,105380.0,105370.0,1.11228413]
[1747583169802,30.50931235,105380.0,105370.0,1.08028413]
[1747583170165,30.50931235,105380.0,105370.0,1.12357074]
[1747583170371,30.50931235,105380.0,105370.0,1.53767074]
[1747583171480,30.50931235,105380.0,105370.0,1.47397074]
[1747583171706,30.76260168,105380.0,105370.0,0.83679384]
[1747583171932,30.59179019,105380.0,105370.0,0.85577348]
[1747583172131,30.582301,105380.0,105370.0,0.85577348]
[1747583172294,30.582301,105380.0,105370.0,0.66517348]
[1747583173179,30.57281235,105380.0,105370.0,0.66517348]
[1747583173388,30.58230118,105380.0,105370.0,0.25107348]
[1747583173516,30.57281235,105380.0,105370.0,0.25107348]
[1747583173718,30.58230118,105380.0,105370.0,0.25107348]
[1747583173928,30.58230109,105380.0,105370.0,0.25107348]
[1747583174925,31.07608074,105380.0,105370.0,0.02330623]
[1747583175864,31.18793099,105380.0,105370.0,0.02330623]
[1747583177179,31.18793099,105380.0,105370.0,0.003]
[1747583179552,31.18793099,105380.0,105370.0,0.002]
[1747583179755,30.89343022,105380.0,105370.0,0.002]
[1747583179961,31.18793099,105380.0,105370.0,0.003]
[1747583180426,0.27533846,105370.0,105360.0,0.01852662]
[1747583180648,0.37264741,105370.0,105360.0,0.21784297]
[1747583180864,0.39162777,105370.0,105360.0,0.20880761]
[1747583181525,0.40111813,105370.0,105360.0,0.20880761]
[1747583181742,0.40111813,105370.0,105360.0,0.21829851]
[1747583182334,0.40111813,105370.0,105360.0,0.21829869]
[1747583182538,0.40111813,105370.0,105360.0,0.21829878]
[1747583183215,0.39162831,105370.0,105360.0,0.00949126]
[1747583183420,0.39262831,105370.0,105360.0,0.01898243]
[1747583183629,0.39262831,105370.0,105360.0,0.21829887]
[1747583183844,0.39262831,105370.0,105360.0,0.00949126]
[1747583184094,0.38313822,105370.0,105360.0,0.01898243]
[1747583184523,0.38313822,105370.0,105360.0,0.02847351]
[1747583184727,0.67763899,105370.0,105360.0,0.22778986]
[1747583184930,0.67763899,105370.0,105360.0,0.00949126]
[1747583185136,0.67763899,105370.0,105360.0,0.21829878]
[1747583185339,0.67763899,105370.0,105360.0,0.21829887]
[1747583185934,0.67763899,105370.0,105360.0,0.20880779]
[1747583186571,0.67763899,105370.0,105360.0,0.21829878]
[1747583186984,0.67763899,105370.0,105360.0,0.00949126]
[1747583187238,0.67763899,105370.0,105360.0,0.01898243]
[1747583187457,0.67763899,105370.0,105360.0,0.00949126]
[1747583187670,0.67763899,105370.0,105360.0,0.01898243]
[1747583187933,0.63293656,105370.0,105350.0,0.19933495]
[1747583188145,0.07069063,105360.0,105350.0,0.21831837]
[1747583188588,0.07069063,105360.0,105350.0,0.22734426]
[1747583188797,0.08018162,105360.0,105350.0,0.22734426]
[1747583189013,0.08018144,105360.0,105350.0,0.22734426]
[1747583189438,0.08967189,105360.0,105350.0,0.22734426]
[1747583190062,0.08967189,105360.0,105350.0,0.22834426]
[1747583190317,0.0301,105360.0,105350.0,0.22834426]
[1747583190497,0.03959045,105360.0,105350.0,0.22734426]
[1747583190946,0.04908108,105360.0,105350.0,0.23034426]
[1747583191155,0.04908108,105360.0,105350.0,0.22834426]
[1747583191373,0.03959045,105360.0,105350.0,0.22834426]
[1747583191590,0.03959045,105360.0,105350.0,0.23034426]
[1747583191802,0.04908117,105360.0,105350.0,0.23034426]
[1747583192317,0.03959045,105360.0,105350.0,0.23034426]
[1747583192830,0.0301,105360.0,105350.0,0.23034426]
[1747583193400,0.03959054,105360.0,105350.0,0.23034426]